bitfinex/quotes_BTCUSD_20251117
["timestamp","ask_amount","ask_price","bid_price","bid_amount"]
[1763386468069,0.0925,94518.0,94404.0,0.07538028]
[1763386468295,0.01058313,94490.0,94452.0,0.0615]
[1763386468524,2.0,94479.0,94444.0,10.07514435]
[1763386468753,0.05825318,94478.0,94444.0,10.07514435]
[1763386468972,2.0,94474.0,94445.0,0.01270704]
[1763386469193,0.05825458,94473.0,94446.0,0.10366938]
[1763386469411,0.00962341,94472.0,94447.0,0.01270717]
[1763386469629,0.00962341,94471.0,94447.0,0.01270717]
[1763386469850,0.03608683,94470.0,94447.0,0.01270717]
[1763386470129,0.03608683,94470.0,94444.0,10.07514435]
[1763386470130,0.21171268,94468.0,94444.0,9.96518214]
[1763386470352,0.05825626,94467.0,94444.0,9.96518214]
[1763386470569,0.02886037,94466.0,94444.0,9.96518214]
[1763386470786,0.05532519,94465.0,94444.0,9.96518214]
[1763386471016,0.02886037,94464.0,94444.0,9.96518214]
[1763386471231,0.02886037,94463.0,94444.0,9.96518214]
[1763386471447,0.02742965,94474.0,94444.0,9.96518214]
[1763386471448,0.02886037,94462.0,94444.0,10.06885152]
[1763386471670,0.02886037,94461.0,94444.0,9.96518214]
[1763386471886,0.01923696,94460.0,94444.0,9.96518214]
[1763386472112,0.01923696,94459.0,94444.0,9.96518214]
[1763386472330,0.01923696,94458.0,94444.0,9.96518214]
[1763386472547,0.01923696,94457.0,94444.0,9.96518214]
[1763386472764,0.01923696,94456.0,94444.0,9.96518214]
[1763386473018,0.01923696,94472.0,94444.0,9.96518214]
[1763386473246,0.05531993,94471.0,94444.0,9.96518214]
[1763386473460,0.02885679,94470.0,94444.0,9.96518214]
[1763386473671,0.05532049,94469.0,94444.0,9.96518214]
[1763386473877,0.02885679,94468.0,94444.0,9.96518214]
[1763386474077,0.02742965,94471.0,94444.0,9.96518214]
[1763386474078,0.05532105,94467.0,94444.0,9.96518214]
[1763386474208,0.02885679,94466.0,94444.0,9.96518214]
[1763386474413,0.05532161,94465.0,94445.0,0.10366938]
[1763386474618,0.02885679,94464.0,94445.0,0.0615]
[1763386474817,0.05532217,94463.0,94446.0,0.0615]
[1763386475021,0.02885679,94462.0,94446.0,0.0615]
[1763386475318,0.02885679,94461.0,94446.0,0.0615]
[1763386475517,0.01923696,94460.0,94446.0,0.0615]
[1763386475775,0.01923696,94459.0,94447.0,0.10366938]
[1763386476074,0.01923696,94459.0,94444.0,9.96518214]
[1763386476075,0.01923696,94458.0,94448.0,0.0615]
[1763386476218,0.01923696,94457.0,94448.0,0.0615]
[1763386476445,0.01923696,94456.0,94449.0,0.00061129]
[1763386476650,0.01923696,94455.0,94449.0,0.00061129]
[1763386476892,0.02646258,94473.0,94449.0,0.00061129]
[1763386476893,0.01923696,94454.0,94450.0,0.0616]
[1763386477137,0.01923696,94453.0,94451.0,0.10366938]
[1763386477341,0.01923696,94452.0,94444.0,9.96518214]
[1763386477523,0.02646174,94476.0,94444.0,9.96518214]
[1763386477524,0.01923696,94451.0,94444.0,9.96518214]
[1763386477723,0.01923696,94450.0,94444.0,9.96518214]
[1763386477924,0.01923696,94449.0,94444.0,9.96518214]
[1763386478205,0.03659992,94473.0,94444.0,9.96518214]
[1763386478206,0.01923696,94448.0,94444.0,9.96518214]
[1763386478462,0.01923696,94447.0,94444.0,9.96518214]
[1763386478699,0.01923696,94446.0,94444.0,9.96518214]
[1763386478956,0.01923696,94445.0,94444.0,9.96518214]
[1763386479201,0.0264651,94464.0,94445.0,0.04021]
[1763386479438,0.02885484,94463.0,94445.0,0.04021]
[1763386479679,0.02885484,94462.0,94445.0,0.15411648]
[1763386479927,0.02885484,94461.0,94445.0,0.08042]
[1763386480170,0.05489989,94485.0,94444.0,9.96518214]
[1763386480171,0.01923656,94460.0,94446.0,0.04021]
[1763386480443,0.01923656,94459.0,94446.0,0.04021]
[1763386480706,0.02646118,94478.0,94446.0,0.04021]
[1763386480707,0.01923656,94458.0,94446.0,0.04021]
[1763386480930,0.01923656,94457.0,94447.0,0.10366938]
[1763386481156,0.01923656,94456.0,94447.0,0.10366938]
[1763386481379,0.01923656,94456.0,94446.0,0.04021]
[1763386481380,0.01923656,94455.0,94446.0,0.04021]
[1763386481600,0.01923656,94454.0,94446.0,0.04021]
[1763386481818,0.01923656,94453.0,94446.0,0.04021]
[1763386482044,0.01923656,94452.0,94446.0,0.04021]
[1763386482306,0.01923656,94451.0,94446.0,0.04021]
[1763386482555,0.01923656,94450.0,94446.0,0.04021]
[1763386482806,0.01923656,94449.0,94444.0,9.96518214]
[1763386483012,0.02742965,94472.0,94444.0,9.96518214]
[1763386483013,0.01923656,94448.0,94444.0,9.96518214]
[1763386483218,0.01923656,94447.0,94444.0,9.96518214]
[1763386483427,0.01923656,94446.0,94444.0,9.96518214]
[1763386483605,0.01923656,94445.0,94444.0,9.96518214]
[1763386483814,0.01923656,94467.0,94444.0,9.96518214]
[1763386484064,0.0553379,94466.0,94444.0,10.00539214]
[1763386484286,0.02887336,94465.0,94450.0,0.04021]
[1763386484511,0.02887336,94464.0,94450.0,0.7188534]
[1763386484752,0.02887336,94463.0,94450.0,0.7188534]
[1763386484962,0.01923656,94462.0,94451.0,0.04021]
[1763386485169,0.01923656,94461.0,94451.0,0.04021]
[1763386485401,0.01923656,94460.0,94451.0,0.04021]
[1763386485605,0.01923656,94459.0,94451.0,0.09333327]
[1763386485821,0.01923656,94458.0,94452.0,0.04021]
[1763386486034,0.01923656,94457.0,94452.0,0.04021]
[1763386486248,0.01923656,94456.0,94452.0,0.04021]
[1763386486456,0.02216859,94481.0,94453.0,0.04341874]
[1763386486676,0.02223125,94489.0,94481.0,0.04021]
[1763386486885,0.00964544,94488.0,94481.0,0.04021]
[1763386487103,0.00964544,94487.0,94481.0,0.04021]
[1763386487318,0.02742965,94500.0,94486.0,0.04021]
[1763386487527,0.05489989,94513.0,94486.0,0.04021]
[1763386487528,0.00964975,94499.0,94486.0,0.04021]
[1763386487739,0.00964975,94498.0,94487.0,0.04021]
[1763386487986,0.02645418,94503.0,94487.0,0.04021]
[1763386488225,0.05489989,94524.0,94487.0,0.04021]
[1763386488226,0.00965017,94502.0,94487.0,0.04021]
[1763386488479,0.00965017,94501.0,94487.0,0.04021]
[1763386488703,0.02645222,94510.0,94487.0,0.04021]
[1763386488923,0.00965,94509.0,94487.0,0.04021]
[1763386489189,0.03110278,94508.0,94487.0,0.04021]
[1763386489401,0.00965,94507.0,94492.0,0.00022306]
[1763386489622,0.00964843,94506.0,94492.0,0.00022306]
[1763386489855,0.1111,94493.0,94492.0,0.00022306]
[1763386490293,0.225085,94493.0,94492.0,0.00022306]
[1763386491369,0.01058313,94490.0,94445.0,0.00987472]
[1763386491577,0.01058313,94490.0,94446.0,0.10366938]
[1763386491578,0.021485,94489.0,94446.0,0.10366938]
[1763386491787,0.021485,94489.0,94446.0,0.12287035]
[1763386492000,0.0151197,94490.0,94483.0,0.00025043]
[1763386492239,0.0103197,94490.0,94483.0,0.00025043]
[1763386492643,0.02192646,94490.0,94483.0,0.00025043]
[1763386493729,0.00044146,94490.0,94483.0,0.00025043]
[1763386493939,0.02292646,94490.0,94483.0,0.00025043]
[1763386494142,0.00144146,94490.0,94483.0,0.00025043]
[1763386494371,0.04851,94484.0,94483.0,0.00025043]
[1763386494599,0.11292,94484.0,94483.0,0.00025043]
[1763386494806,0.234075,94484.0,94483.0,0.00025043]
[1763386495019,0.21259,94484.0,94483.0,0.00025043]
[1763386496626,0.04951,94484.0,94483.0,0.00025043]
[1763386496868,0.001,94484.0,94483.0,0.00025043]
[1763386497735,0.02192646,94490.0,94483.0,0.00025043]
[1763386498195,0.01662653,94488.0,94483.0,0.00025043]
[1763386498411,0.01936866,94487.0,94483.0,0.00025043]
[1763386498650,0.01936866,94486.0,94483.0,0.00025043]
[1763386498867,0.01936866,94485.0,94483.0,0.00025043]
[1763386499088,0.01936866,94484.0,94451.0,0.002]
[1763386499320,0.01936866,94483.0,94452.0,0.08671054]
[1763386499539,0.01936866,94482.0,94452.0,0.08671054]
[1763386499758,0.01936866,94481.0,94452.0,0.08671054]
[1763386499999,0.01936866,94480.0,94452.0,0.08671054]
[1763386500219,0.01936866,94479.0,94461.0,0.04341874]
[1763386500432,0.01936866,94478.0,94463.0,0.04341874]
[1763386500723,0.01936866,94477.0,94465.0,0.04341874]
[1763386500958,0.01936866,94476.0,94467.0,0.04341874]
[1763386501172,0.01936866,94475.0,94416.0,9e-05]
[1763386501386,0.04851,94452.0,94416.0,9e-05]
[1763386501597,0.07756078,94452.0,94416.0,9e-05]
[1763386501815,0.24164078,94452.0,94416.0,9e-05]
[1763386502088,0.2589482,94452.0,94416.0,9e-05]
[1763386502736,0.25938939,94452.0,94416.0,9e-05]
[1763386502961,0.15971939,94452.0,94416.0,9e-05]
[1763386503203,0.15971939,94452.0,94427.0,0.005]
[1763386503204,0.05279939,94452.0,94427.0,0.005]
[1763386503434,0.05279939,94452.0,94445.0,0.01920053]
[1763386503435,0.03049197,94452.0,94445.0,0.01920053]
[1763386503665,0.02949197,94452.0,94445.0,0.01920053]
[1763386503931,0.03049197,94452.0,94445.0,0.01920053]
[1763386504162,0.01012331,94452.0,94445.0,0.01920053]
[1763386504649,0.02947294,94452.0,94445.0,0.01920053]
[1763386505131,0.02947294,94452.0,94426.0,0.005]
[1763386505383,0.02947294,94452.0,94451.0,0.00202103]
[1763386506322,0.02947294,94452.0,94444.0,9.90676151]
[1763386506549,0.02903175,94451.0,94444.0,9.90676151]
[1763386506777,0.00044119,94452.0,94444.0,9.90676151]
[1763386506778,0.05051675,94450.0,94444.0,9.90676151]
[1763386507026,0.02903175,94449.0,94444.0,9.90676151]
[1763386507309,0.05051675,94448.0,94444.0,9.90676151]
[1763386507539,0.02903175,94447.0,94444.0,9.90676151]
[1763386507766,0.02903175,94446.0,94444.0,9.90676151]
[1763386507976,0.01934963,94445.0,94444.0,9.90676151]
[1763386508196,0.01934963,94451.0,94444.0,9.90676151]
[1763386508412,0.02902512,94450.0,94444.0,9.90676151]
[1763386508654,0.02902512,94449.0,94444.0,9.90676151]
[1763386508892,0.02902512,94448.0,94444.0,9.90676151]
[1763386509124,0.00044119,94452.0,94444.0,9.90676151]
[1763386509125,0.02902512,94447.0,94444.0,9.90676151]
[1763386509357,0.02902512,94446.0,94444.0,9.90676151]
[1763386509573,0.02192619,94452.0,94444.0,9.90676151]
[1763386509574,0.02902512,94445.0,94444.0,9.90676151]
[1763386511113,0.01934963,94445.0,94444.0,9.91676151]
[1763386512022,0.00044119,94452.0,94450.0,0.04341874]
[1763386512239,0.00044119,94452.0,94445.0,0.04341874]
[1763386512240,0.021485,94489.0,94460.0,0.50630213]
[1763386512485,0.02902278,94488.0,94472.0,0.005]
[1763386512707,0.02902278,94487.0,94472.0,0.005]
[1763386512926,0.05050778,94486.0,94461.0,0.0242025]
[1763386513159,0.04851,94473.0,94460.0,0.00013267]
[1763386513384,0.02902278,94472.0,94460.0,0.00013267]
[1763386513606,0.05237511,94471.0,94450.0,0.01930789]
[1763386513840,0.02902278,94470.0,94451.0,0.01944885]
[1763386514059,0.02902278,94469.0,94452.0,0.04341874]
[1763386514273,0.01934852,94468.0,94453.0,0.01944843]
[1763386514490,0.01934852,94467.0,94454.0,0.04341874]
[1763386514716,0.01929698,94466.0,94455.0,0.01944883]
[1763386514973,0.00013235,94471.0,94455.0,0.01944883]
[1763386516088,0.002,94469.0,94455.0,0.01944883]
[1763386516754,0.00013235,94471.0,94455.0,0.01597883]
[1763386517381,0.00213235,94471.0,94455.0,0.01597883]
[1763386518513,0.00967833,94470.0,94443.0,0.00022296]
[1763386518745,0.03614203,94469.0,94444.0,10.0069781]
[1763386518959,0.00967833,94468.0,94444.0,9.90676151]
[1763386519201,0.00967833,94467.0,94445.0,0.04341874]
[1763386519413,0.00968325,94466.0,94445.0,0.04341874]
[1763386519626,0.00968325,94465.0,94445.0,0.04341874]
[1763386519834,0.00968325,94464.0,94445.0,0.04341874]
[1763386520047,0.00968325,94463.0,94445.0,0.04341874]
[1763386520263,0.00968325,94462.0,94444.0,9.90676151]
[1763386520474,0.00968325,94461.0,94444.0,9.90676151]
[1763386520684,0.00968325,94460.0,94445.0,0.092359]
[1763386520910,0.04877112,94469.0,94444.0,9.82776151]
[1763386521120,0.00968435,94468.0,94444.0,9.82776151]
[1763386521330,0.03614861,94467.0,94444.0,9.82776151]
[1763386521567,0.00968435,94466.0,94444.0,9.82776151]
[1763386521793,0.001,94461.0,94444.0,9.82776151]
[1763386522023,0.001,94461.0,94451.0,0.04341874]
[1763386522255,0.00013235,94471.0,94453.0,0.04341874]
[1763386522483,0.00013235,94471.0,94454.0,0.01491847]
[1763386522768,0.002,94467.0,94454.0,0.01491847]
[1763386523831,0.00013235,94471.0,94454.0,0.01491847]
[1763386524261,0.00113235,94471.0,94446.0,0.04341874]
[1763386524488,0.00113235,94471.0,94448.0,0.04341874]
[1763386524696,0.00013235,94471.0,94448.0,0.04341874]
[1763386524919,0.00013235,94471.0,94446.0,0.04341874]
[1763386525140,0.001,94467.0,94446.0,0.04341874]
[1763386525557,0.00013235,94471.0,94446.0,0.04341874]
[1763386525775,0.00013235,94471.0,94445.0,0.04341874]
[1763386525989,0.51598713,94470.0,94433.0,0.04341874]
[1763386526201,0.04877914,94469.0,94433.0,0.04341874]
[1763386526415,0.00968413,94468.0,94445.0,0.09254643]
[1763386526630,0.00968413,94468.0,94433.0,0.04341874]
[1763386526631,0.02646426,94467.0,94433.0,0.04341874]
[1763386526860,0.01936948,94466.0,94433.0,0.04341874]
[1763386527073,0.01936948,94465.0,94433.0,0.04341874]
[1763386527295,0.01936948,94464.0,94433.0,0.04341874]
[1763386527504,0.01936948,94463.0,94433.0,0.04341874]
[1763386527766,0.01936948,94462.0,94444.0,9.74876151]
[1763386527997,0.01936948,94461.0,94444.0,9.74876151]
[1763386528236,0.02905381,94460.0,94444.0,9.74876151]
[1763386528462,0.01936948,94459.0,94444.0,9.74876151]
[1763386528680,0.01936948,94458.0,94444.0,9.74876151]
[1763386528889,0.02646706,94457.0,94444.0,9.74876151]
[1763386529096,0.01936948,94456.0,94444.0,9.74876151]
[1763386529313,0.02646763,94455.0,94444.0,9.85243089]
[1763386529527,0.01936948,94454.0,94444.0,9.85243089]
[1763386529954,0.04913402,94466.0,94444.0,9.85243089]
[1763386530167,0.05582621,94465.0,94445.0,0.04236]
[1763386530379,0.00968621,94464.0,94445.0,0.04236]
[1763386530633,0.002,94459.0,94445.0,0.1040899]
[1763386530837,0.00968621,94458.0,94445.0,0.1040899]
[1763386531052,0.00035527,94457.0,94445.0,0.04236]
[1763386531258,0.00035527,94464.0,94445.0,0.04236]
[1763386531471,0.00968654,94463.0,94445.0,0.04236]
[1763386531689,0.50630213,94460.0,94444.0,9.74876151]
[1763386531900,0.01004181,94459.0,94444.0,9.74876151]
[1763386532111,0.01068654,94458.0,94444.0,9.80716798]
[1763386532325,0.01004181,94457.0,94444.0,9.80716798]
[1763386532537,0.00968654,94456.0,94444.0,9.74876151]
[1763386532778,0.00035527,94455.0,94444.0,9.74876151]
[1763386532988,0.00968654,94454.0,94444.0,9.74876151]
[1763386533206,0.00035527,94453.0,94444.0,9.74876151]
[1763386533422,0.00968654,94452.0,94444.0,9.74876151]
[1763386533850,0.00968654,94451.0,94444.0,9.74876151]
[1763386534086,0.00013235,94471.0,94450.0,0.06132]
[1763386534298,0.00969056,94470.0,94459.0,0.06132]
[1763386534543,0.00969056,94469.0,94459.0,0.06032]
[1763386534771,0.00013235,94471.0,94470.0,0.06132]
[1763386534994,0.00013235,94471.0,94460.0,0.089]
[1763386535214,0.00013235,94471.0,94456.0,0.048]
[1763386535440,0.00213235,94471.0,94456.0,0.048]
[1763386535662,0.00213235,94471.0,94457.0,0.01337787]
[1763386536103,0.00213235,94471.0,94452.0,0.04341874]
[1763386536542,0.00013235,94471.0,94453.0,0.048]
[1763386536769,0.00113235,94471.0,94453.0,0.048]
[1763386537007,0.00113235,94471.0,94451.0,0.04236]
[1763386537221,0.00013235,94471.0,94451.0,0.14602938]
[1763386537453,0.00969259,94470.0,94451.0,0.14602938]
[1763386537671,0.01004777,94469.0,94451.0,0.14602938]
[1763386537916,0.00035527,94469.0,94451.0,0.14602938]
[1763386538126,0.00013235,94471.0,94451.0,0.04236]
[1763386538365,0.00013235,94471.0,94452.0,0.06917477]
[1763386538577,0.00113235,94471.0,94453.0,0.048]
[1763386538796,0.00113235,94471.0,94454.0,0.02117432]
[1763386539241,0.00113235,94471.0,94470.0,0.048]
[1763386539475,0.00113235,94471.0,94470.0,0.096]
[1763386539698,0.00013235,94471.0,94470.0,0.096]
[1763386540132,0.00013235,94471.0,94470.0,0.095]
[1763386540993,0.00113235,94471.0,94470.0,0.095]
[1763386541205,0.00113235,94471.0,94470.0,0.1045]
[1763386541632,0.00113235,94471.0,94470.0,0.095]
[1763386542052,0.00113235,94471.0,94470.0,0.034]
[1763386542283,0.00113235,94471.0,94462.0,0.06459127]
[1763386543167,0.00013235,94471.0,94462.0,0.06459127]
[1763386543378,0.00113235,94471.0,94462.0,0.06459127]
[1763386543595,0.00113235,94471.0,94464.0,0.04341874]
[1763386543808,0.00113235,94471.0,94466.0,0.04341874]
[1763386544034,0.00013235,94471.0,94468.0,0.04341874]
[1763386544268,0.001,94471.0,94470.0,0.04341874]
[1763386544486,0.00074,94471.0,94470.0,0.06097014]
[1763386544698,0.00035527,94510.0,94470.0,0.05552014]
[1763386544929,0.00035527,94510.0,94490.0,0.50630213]
[1763386544930,0.02908233,94509.0,94490.0,0.50630213]
[1763386545147,0.00013279,94510.0,94491.0,0.02116603]
[1763386545148,0.02908233,94508.0,94491.0,0.02116603]
[1763386545363,0.01938822,94507.0,94484.0,0.0211676]
[1763386545606,0.01938822,94506.0,94470.0,0.52385353]
[1763386545837,0.01938822,94505.0,94470.0,0.0175514]
[1763386546050,0.01938822,94504.0,94460.0,0.51630212]
[1763386546270,0.001,94471.0,94460.0,0.51630212]
[1763386546690,0.04614,94505.0,94462.0,0.04341874]
[1763386546929,0.01936978,94504.0,94462.0,0.04341874]
[1763386547146,0.01936978,94503.0,94477.0,0.04341874]
[1763386547360,0.01936978,94502.0,94462.0,0.10546513]
[1763386547571,0.01936978,94501.0,94462.0,0.10546513]
[1763386547789,0.01936978,94500.0,94462.0,0.10546513]
[1763386547999,0.01936978,94499.0,94462.0,0.10546513]
[1763386548240,0.01936978,94498.0,94464.0,0.04341874]
[1763386548447,0.01936978,94497.0,94464.0,0.04341874]
[1763386548656,8.902e-05,94503.0,94464.0,0.04341874]
[1763386548872,0.0193581,94502.0,94464.0,0.04341874]
[1763386549080,0.0193581,94501.0,94464.0,0.04341874]
[1763386549291,0.0193581,94500.0,94465.0,0.07365755]
[1763386549502,0.0193581,94500.0,94470.0,0.50630213]
[1763386549723,0.0193581,94499.0,94476.0,0.10416178]
[1763386549931,0.0193581,94498.0,94476.0,0.10416178]
[1763386550182,8.902e-05,94503.0,94477.0,0.02116917]
[1763386550391,0.001,94501.0,94478.0,0.0125331]
[1763386550598,0.001,94501.0,94479.0,0.02116872]
[1763386550818,8.902e-05,94503.0,94479.0,0.02116872]
[1763386551031,0.01935211,94502.0,94479.0,0.02116872]
[1763386552350,0.001,94498.0,94479.0,0.02116872]
[1763386552559,0.001,94498.0,94480.0,0.01378636]
[1763386552768,8.902e-05,94503.0,94481.0,0.02116827]
[1763386552973,0.01934809,94502.0,94481.0,0.02116827]
[1763386553180,0.01934809,94501.0,94481.0,0.02116827]
[1763386553425,0.01934809,94500.0,94481.0,0.02116827]
[1763386553638,0.001,94502.0,94480.0,0.52008849]
[1763386553639,0.001,94502.0,94490.0,0.50630213]
[1763386553873,0.001,94502.0,94491.0,0.02116603]
[1763386554088,8.902e-05,94503.0,94483.0,0.04341874]
[1763386554296,0.00108902,94503.0,94483.0,0.04341874]
[1763386554508,0.00108902,94503.0,94491.0,0.10416178]
[1763386554719,0.00108902,94503.0,94484.0,0.0211676]
[1763386554927,0.00108902,94503.0,94484.0,0.02704223]
[1763386555346,0.00108902,94503.0,94484.0,0.04820983]
[1763386555519,8.902e-05,94503.0,94484.0,0.04820983]
[1763386555751,0.001,94502.0,94484.0,0.04820983]
[1763386556178,8.902e-05,94503.0,94484.0,0.04820983]
[1763386556407,8.902e-05,94503.0,94491.0,0.10416178]
[1763386556633,0.02231396,94534.0,94500.0,0.00999999]
[1763386556853,0.02231396,94534.0,94490.0,0.00999999]
[1763386556854,0.50630213,94530.0,94480.0,0.52008849]
[1763386557062,0.06313524,94529.0,94470.0,0.51630212]
[1763386557272,0.01933798,94528.0,94480.0,0.50630213]
[1763386557487,0.02152287,94529.0,94490.0,0.50630213]
[1763386557488,0.01933798,94527.0,94490.0,0.50630213]
[1763386557714,0.01933798,94527.0,94491.0,0.02007296]
[1763386557715,0.01933798,94526.0,94491.0,0.02007296]
[1763386557931,0.04086085,94525.0,94496.0,0.10416178]
[1763386558150,0.01933798,94524.0,94500.0,0.50630213]
[1763386558365,0.01933798,94523.0,94501.0,0.01901265]
[1763386558599,8.902e-05,94541.0,94501.0,0.01901265]
[1763386558600,0.01933798,94522.0,94501.0,0.01901265]
[1763386558809,0.01933798,94521.0,94501.0,0.01901265]
[1763386559017,0.02152287,94535.0,94502.0,0.01231744]
[1763386559233,0.001,94529.0,94503.0,0.01901225]
[1763386559439,0.01932815,94528.0,94503.0,0.01901225]
[1763386559655,0.001,94523.0,94502.0,0.01231744]
[1763386559920,0.01932815,94522.0,94492.0,0.05263751]
[1763386560132,0.01932815,94521.0,94492.0,0.05263751]
[1763386560358,0.01932815,94520.0,94491.0,0.10416178]
[1763386560570,0.02152287,94529.0,94491.0,0.10416178]
[1763386560571,0.01932815,94519.0,94491.0,0.10416178]
[1763386560989,0.01932815,94518.0,94491.0,0.10416178]
[1763386561199,0.01932815,94517.0,94491.0,0.10416178]
[1763386561407,0.001,94529.0,94492.0,0.01689788]
[1763386561633,0.01933057,94528.0,94493.0,0.06273618]
[1763386561854,0.01933057,94527.0,94500.0,0.50630213]
[1763386562071,0.02227006,94544.0,94518.0,0.50630213]
[1763386562288,0.01933501,94540.0,94519.0,0.01689306]
[1763386562501,0.0437834,94557.0,94519.0,0.01689306]
[1763386562502,0.01933501,94539.0,94521.0,0.10316178]
[1763386562725,0.01933501,94538.0,94522.0,0.01795122]
[1763386562956,0.01933501,94537.0,94501.0,0.04341874]
[1763386563171,0.01933501,94536.0,94516.0,0.10416178]
[1763386563379,0.01933501,94535.0,94517.0,0.02006744]
[1763386563591,0.01933501,94534.0,94510.0,0.50630213]
[1763386563824,0.01933501,94533.0,94512.0,0.10416178]
[1763386564033,0.01933501,94532.0,94512.0,0.10416178]
[1763386564251,0.01425592,94541.0,94502.0,0.05497209]
[1763386564252,0.01933501,94531.0,94502.0,0.05497209]
[1763386564462,0.04891,94534.0,94508.0,0.10416178]
[1763386564463,0.01933501,94530.0,94508.0,0.10416178]
[1763386564670,0.01933501,94529.0,94508.0,0.10416178]
[1763386564898,0.01933501,94528.0,94508.0,0.10416178]
[1763386565119,0.01933501,94527.0,94508.0,0.10416178]
[1763386565340,0.01933501,94526.0,94508.0,0.10416178]
[1763386565578,0.01933501,94525.0,94509.0,0.01475805]
[1763386566007,0.01425592,94541.0,94509.0,0.01475805]
[1763386566249,0.01933204,94540.0,94509.0,0.01475805]
[1763386566463,0.01933204,94539.0,94510.0,0.69653411]
[1763386566682,0.01933204,94538.0,94511.0,0.04341874]
[1763386566893,0.01933204,94537.0,94512.0,0.01795238]
[1763386567096,0.01933204,94536.0,94523.0,0.10416178]
[1763386567317,0.01933204,94535.0,94524.0,0.0179501]
[1763386567588,0.01933204,94534.0,94524.0,0.0179501]
[1763386567798,8.902e-05,94541.0,94525.0,0.07996352]
[1763386568004,0.01933421,94540.0,94526.0,0.01794972]
[1763386568221,0.01933421,94539.0,94523.0,0.10416178]
[1763386568435,0.01933421,94538.0,94524.0,0.01041618]
[1763386568648,0.01933421,94537.0,94524.0,0.02730834]
[1763386568880,0.001,94539.0,94524.0,0.01041618]
[1763386568881,0.01933421,94536.0,94524.0,0.01041618]
[1763386569092,8.902e-05,94541.0,94524.0,0.01041618]
[1763386569093,0.01933421,94535.0,94524.0,0.01041618]
[1763386569326,8.902e-05,94541.0,94524.0,0.01041618]
[1763386569547,0.01933529,94540.0,94525.0,0.07931012]
[1763386569769,0.01933529,94539.0,94525.0,0.07931012]
[1763386569979,0.01933529,94538.0,94525.0,0.07931012]
[1763386570198,0.01933529,94537.0,94526.0,0.01794946]
[1763386570417,0.01934146,94536.0,94510.0,0.69752325]
[1763386570642,0.01934146,94535.0,94527.0,0.04716178]
[1763386570856,8.902e-05,94541.0,94527.0,0.04716178]
[1763386571070,0.01933678,94540.0,94527.0,0.04716178]
[1763386571282,0.01933678,94539.0,94524.0,0.001]
[1763386571506,0.04864834,94568.0,94540.0,0.06112]
[1763386571730,0.04864834,94568.0,94541.0,0.006112]
[1763386571731,0.00966957,94567.0,94541.0,0.006112]
[1763386571936,0.00966964,94566.0,94541.0,0.02726684]
[1763386572146,0.00966964,94565.0,94541.0,0.006112]
[1763386572352,0.00966964,94564.0,94541.0,0.006112]
[1763386572562,0.00966964,94563.0,94541.0,0.006112]
[1763386572789,0.00966964,94562.0,94541.0,0.006112]
[1763386573001,0.00966964,94561.0,94541.0,0.006112]
[1763386573228,0.01385777,94565.0,94541.0,0.006112]
[1763386573229,0.00966964,94560.0,94541.0,0.006112]
[1763386573442,0.00966964,94559.0,94541.0,0.006112]
[1763386573655,0.00966964,94558.0,94542.0,0.02978481]
[1763386573880,0.00966964,94557.0,94542.0,0.02978481]
[1763386574138,0.06275,94543.0,94540.0,0.005]
[1763386574346,0.00966964,94542.0,94540.0,0.005]
[1763386576279,0.02787024,94559.0,94541.0,0.14131]
[1763386576487,0.00967437,94558.0,94542.0,0.03578561]
[1763386576704,0.00967437,94557.0,94542.0,0.03578561]
[1763386576914,0.00967437,94556.0,94542.0,0.014631]
[1763386577130,0.00967437,94555.0,94540.0,0.005]
[1763386577350,0.00967437,94554.0,94543.0,0.08019]
[1763386577568,0.00967437,94553.0,94544.0,0.02115417]
[1763386577780,0.01385777,94565.0,94544.0,0.02115417]
[1763386577993,0.01385777,94565.0,94564.0,0.01409]
[1763386578205,0.02353535,94565.0,94564.0,0.01409]
[1763386578849,0.02353535,94565.0,94558.0,0.01409]
[1763386579054,0.00967758,94564.0,94558.0,0.01409]
[1763386579531,0.00967758,94564.0,94558.0,0.06828]
[1763386579742,0.00967758,94564.0,94563.0,0.05319]
[1763386580590,0.0002,94570.0,94563.0,0.05319]
[1763386580845,0.0002,94570.0,94567.0,0.05319]
[1763386581548,0.01457167,94568.0,94567.0,0.05319]
[1763386581781,0.01457167,94568.0,94567.0,0.10638]
[1763386582020,0.01457167,94568.0,94567.0,0.117018]
[1763386582534,0.00044245,94568.0,94567.0,0.116018]
[1763386582802,0.00044245,94568.0,94567.0,0.117018]
[1763386583492,0.01980128,94568.0,94567.0,0.117018]
[1763386583725,0.01980128,94568.0,94567.0,0.116018]
[1763386583965,0.01980128,94568.0,94567.0,0.117018]
[1763386584243,0.01980128,94568.0,94567.0,0.118018]
[1763386584467,0.01980128,94568.0,94567.0,0.10738]
[1763386585145,0.01980128,94568.0,94567.0,0.08238]
[1763386585360,0.01980128,94568.0,94567.0,0.10252902]
[1763386585610,0.01980128,94568.0,94567.0,0.08238]
[1763386585830,0.01980128,94568.0,94567.0,0.08638]
[1763386586046,0.01980128,94568.0,94567.0,0.10754921]
[1763386586690,0.01980128,94568.0,94567.0,0.10954921]
[1763386586926,0.01980128,94568.0,94567.0,0.08838]
[1763386587146,0.01980128,94568.0,94567.0,0.008]
[1763386587366,0.02947793,94568.0,94567.0,0.008]
[1763386587579,0.02947793,94568.0,94567.0,0.007]
[1763386588237,0.02947793,94568.0,94567.0,0.005]
[1763386588692,0.19664372,94568.0,94567.0,0.006]
[1763386588909,0.19664372,94568.0,94540.0,0.005]
[1763386588910,0.21894484,94568.0,94540.0,0.005]
[1763386589141,0.11461,94541.0,94540.0,0.005]
[1763386589367,0.02903548,94541.0,94540.0,0.005]
[1763386590251,0.02903321,94541.0,94540.0,0.005]
[1763386590463,0.02903321,94541.0,94540.0,0.05938]
[1763386590670,0.01935656,94541.0,94540.0,0.065318]
[1763386590881,0.02035656,94541.0,94540.0,0.065318]
[1763386591090,0.02035656,94541.0,94540.0,0.05938]
[1763386591296,0.02035656,94541.0,94540.0,0.03219]
[1763386591505,0.02035656,94541.0,94540.0,0.005]
[1763386591922,0.02903892,94541.0,94540.0,0.005]
[1763386592127,0.02903892,94541.0,94540.0,0.006]
[1763386592539,0.01935656,94541.0,94540.0,0.005]
[1763386592750,0.02903895,94541.0,94526.0,0.02328]
[1763386592955,0.01935656,94540.0,94527.0,0.01911937]
[1763386593166,0.01935656,94539.0,94527.0,0.01911937]
[1763386593375,0.01935656,94538.0,94526.0,0.02328]
[1763386593585,0.01935656,94538.0,94500.0,0.01999998]
[1763386593586,0.01935656,94537.0,94500.0,0.67752327]
[1763386593791,0.23937814,94558.0,94500.0,0.67752327]
[1763386593792,0.01935656,94536.0,94506.0,0.09933118]
[1763386593999,0.09295,94551.0,94506.0,0.09933118]
[1763386594000,0.01935656,94535.0,94506.0,0.07816851]